[Event "Goteborg Open 2024"]
[Site "Goteborgs Schackcentrum, Vegatan 20, Gothenburg, Sweden"]
[Date "2024.08.04"]
[Round "8.16"]
[White "Evertsson, David"]
[Black "Bergdahl, Martin"]
[Result "0-1"]
[TimeControl "15 minutes + 5 seconds per move from move one (Round 1 - 4) / 90 minutes + 30 seconds per move from move one (Round 5 - 8)"]
[WhiteFideId "1777424"]
[BlackFideId "1782231"]
[WhiteElo "1642"]
[BlackElo "1711"]

1. e4 {[%clk 01:30:57]} {[%emt 00:00:02]} c6 {[%clk 01:30:57]} {[%emt
00:00:04]} 2. d4 {[%clk 01:31:23]} {[%emt 00:00:04]} d5 {[%clk 01:31:24]}
{[%emt 00:00:04]} 3. exd5 {[%clk 01:31:49]} {[%emt 00:00:04]} cxd5 {[%clk
01:31:46]} {[%emt 00:00:07]} 4. c4 {[%clk 01:32:15]} {[%emt 00:00:05]} Nf6
{[%clk 01:32:07]} {[%emt 00:00:09]} 5. Nc3 {[%clk 01:32:39]} {[%emt 00:00:05]}
Nc6 {[%clk 01:31:58]} {[%emt 00:00:39]} 6. Nf3 {[%clk 01:33:01]} {[%emt
00:00:07]} g6 {[%clk 01:31:41]} {[%emt 00:00:48]} 7. Qb3 {[%clk 01:31:47]}
{[%emt 00:01:44]} e6 {[%clk 01:31:28]} {[%emt 00:00:42]} 8. cxd5 {[%clk
01:26:10]} {[%emt 00:06:08]} Nxd5 {[%clk 01:30:45]} {[%emt 00:01:13]} 9. Nxd5
{[%clk 01:25:49]} {[%emt 00:00:51]} Qxd5 {[%clk 01:31:06]} {[%emt 00:00:09]} 10.
Qxd5 {[%clk 01:26:13]} {[%emt 00:00:06]} exd5 {[%clk 01:31:21]} {[%emt
00:00:14]} 11. Bb5 {[%clk 01:18:48]} {[%emt 00:07:55]} Bb4+ {[%clk 01:30:52]}
{[%emt 00:01:00]} 12. Bd2 {[%clk 01:19:09]} {[%emt 00:00:08]} O-O {[%clk
01:30:35]} {[%emt 00:00:47]} 13. O-O-O {[%clk 01:18:34]} {[%emt 00:01:06]} Bd6
{[%clk 01:26:10]} {[%emt 00:04:55]} 14. h3 {[%clk 01:17:53]} {[%emt 00:01:11]}
Bf5 {[%clk 01:26:10]} {[%emt 00:00:29]} 15. Bxc6 {[%clk 01:00:17]} {[%emt
00:18:06]} bxc6 {[%clk 01:22:14]} {[%emt 00:04:26]} 16. Ne5 {[%clk 00:58:36]}
{[%emt 00:02:11]} f6 {[%clk 01:20:42]} {[%emt 00:02:02]} 17. g4 {[%clk
00:58:39]} {[%emt 00:00:27]} fxe5 {[%clk 01:19:54]} {[%emt 00:01:19]} 18. gxf5
{[%clk 00:58:19]} {[%emt 00:00:50]} Rxf5 {[%clk 01:20:10]} {[%emt 00:00:14]} 19.
Rhe1 {[%clk 00:44:25]} {[%emt 00:14:24]} e4 {[%clk 01:19:25]} {[%emt 00:01:15]}
20. Be3 {[%clk 00:44:27]} {[%emt 00:00:28]} Bf4 {[%clk 01:17:07]} {[%emt
00:02:47]} 21. Kd2 {[%clk 00:43:05]} {[%emt 00:01:52]} Bxe3+ {[%clk 01:16:55]}
{[%emt 00:00:42]} 22. fxe3 {[%clk 00:43:26]} {[%emt 00:00:09]} Raf8 {[%clk
01:16:35]} {[%emt 00:00:50]} 23. b4 {[%clk 00:41:07]} {[%emt 00:02:50]} Rf3
{[%clk 01:16:41]} {[%emt 00:00:25]} 24. Rc1 {[%clk 00:35:11]} {[%emt 00:06:25]}
R8f6 {[%clk 01:14:54]} {[%emt 00:02:17]} 25. Rc3 {[%clk 00:32:54]} {[%emt
00:02:47]} Rxh3 {[%clk 01:13:30]} {[%emt 00:01:53]} 26. Ra3 {[%clk 00:33:12]}
{[%emt 00:00:13]} Rf7 {[%clk 01:12:01]} {[%emt 00:01:58]} 27. Rc3 {[%clk
00:31:43]} {[%emt 00:01:59]} a5 {[%clk 01:04:21]} {[%emt 00:08:11]} 28. bxa5
{[%clk 00:31:17]} {[%emt 00:00:55]} Rf2+ {[%clk 01:03:42]} {[%emt 00:01:10]} 29.
Re2 {[%clk 00:30:51]} {[%emt 00:00:56]} Rhh2 {[%clk 01:03:38]} {[%emt
00:00:34]} 30. Rxf2 {[%clk 00:31:03]} {[%emt 00:00:18]} Rxf2+ {[%clk 01:03:57]}
{[%emt 00:00:11]} 31. Ke1 {[%clk 00:30:52]} {[%emt 00:00:40]} Rxa2 {[%clk
01:04:13]} {[%emt 00:00:14]} 32. Rxc6 {[%clk 00:30:44]} {[%emt 00:00:38]} Rxa5
{[%clk 01:04:28]} {[%emt 00:00:15]} 33. Rc7 {[%clk 00:30:40]} {[%emt 00:00:35]}
g5 {[%clk 01:01:44]} {[%emt 00:03:10]} 34. Kf2 {[%clk 00:30:46]} {[%emt
00:00:26]} h5 {[%clk 01:01:39]} {[%emt 00:00:35]} 35. Rd7 {[%clk 00:30:45]}
{[%emt 00:00:33]} h4 {[%clk 01:01:13]} {[%emt 00:00:55]} 36. Re7 {[%clk
00:28:55]} {[%emt 00:02:20]} g4 {[%clk 01:00:35]} {[%emt 00:01:08]} 37. Re5
{[%clk 00:29:16]} {[%emt 00:00:09]} g3+ {[%clk 00:59:42]} {[%emt 00:01:24]} 38.
Kg2 {[%clk 00:29:41]} {[%emt 00:00:05]} Kf7 {[%clk 00:59:10]} {[%emt 00:01:02]}
39. Rh5 {[%clk 00:29:42]} {[%emt 00:00:28]} Ra2+ {[%clk 00:57:43]} {[%emt
00:01:57]} 40. Kh3 {[%clk 00:29:56]} {[%emt 00:00:14]} Rh2+ {[%clk 00:57:36]}
{[%emt 00:00:39]} 41. Kg4 {[%clk 00:30:16]} {[%emt 00:00:10]} g2 {[%clk
00:57:42]} {[%emt 00:00:25]} 42. Rf5+ {[%clk 00:29:32]} {[%emt 00:01:14]} Ke6
{[%clk 00:58:00]} {[%emt 00:00:13]} 43. Re5+ {[%clk 00:29:43]} {[%emt
00:00:18]} Kd6 {[%clk 00:58:25]} {[%emt 00:00:05]} 0-1

[ePGN "0.1;DGT LiveChess/2.2.6"]

[Event "Goteborg Open 2024"]
[Site "Goteborgs Schackcentrum, Vegatan 20, Gothenburg, Sweden"]
[Date "2024.08.04"]
[Round "8.17"]
[White "Johansson, Stefan"]
[Black "Israelsson, Lukas"]
[Result "1/2-1/2"]
[TimeControl "15 minutes + 5 seconds per move from move one (Round 1 - 4) / 90 minutes + 30 seconds per move from move one (Round 5 - 8)"]
[WhiteFideId "1732242"]
[BlackFideId "1784749"]
[WhiteElo "1933"]
[BlackElo "1615"]

1. e4 {[%clk 01:30:58]} {[%emt 00:00:01]} c6 {[%clk 01:30:55]} {[%emt
00:00:05]} 2. d4 {[%clk 01:31:16]} {[%emt 00:00:13]} d5 {[%clk 01:31:16]}
{[%emt 00:00:09]} 3. exd5 {[%clk 01:31:42]} {[%emt 00:00:04]} cxd5 {[%clk
01:31:37]} {[%emt 00:00:09]} 4. Bd3 {[%clk 01:32:06]} {[%emt 00:00:05]} Nf6
{[%clk 01:31:50]} {[%emt 00:00:15]} 5. Bf4 {[%clk 01:32:18]} {[%emt 00:00:19]}
Bg4 {[%clk 01:31:45]} {[%emt 00:00:37]} 6. Nf3 {[%clk 01:32:22]} {[%emt
00:00:26]} Nc6 {[%clk 01:31:59]} {[%emt 00:00:15]} 7. c3 {[%clk 01:32:38]}
{[%emt 00:00:15]} e6 {[%clk 01:32:14]} {[%emt 00:00:16]} 8. Nbd2 {[%clk
01:32:06]} {[%emt 00:01:00]} Be7 {[%clk 01:32:21]} {[%emt 00:00:23]} 9. O-O
{[%clk 01:32:03]} {[%emt 00:00:33]} O-O {[%clk 01:32:42]} {[%emt 00:00:09]} 10.
Re1 {[%clk 01:30:45]} {[%emt 00:01:48]} a6 {[%clk 01:31:15]} {[%emt 00:01:58]}
11. Rc1 {[%clk 01:22:18]} {[%emt 00:08:56]} b5 {[%clk 01:29:05]} {[%emt
00:02:40]} 12. b4 {[%clk 01:18:52]} {[%emt 00:03:57]} Qb6 {[%clk 01:20:02]}
{[%emt 00:09:33]} 13. Nb3 {[%clk 01:14:55]} {[%emt 00:04:27]} a5 {[%clk
01:18:24]} {[%emt 00:02:09]} 14. a3 {[%clk 01:15:05]} {[%emt 00:00:19]} axb4
{[%clk 01:16:43]} {[%emt 00:02:11]} 15. axb4 {[%clk 01:15:11]} {[%emt
00:00:24]} Ra7 {[%clk 01:15:01]} {[%emt 00:02:11]} 16. h3 {[%clk 01:10:47]}
{[%emt 00:04:55]} Bxf3 {[%clk 01:14:22]} {[%emt 00:01:09]} 17. Qxf3 {[%clk
01:11:07]} {[%emt 00:00:09]} Rfa8 {[%clk 01:14:28]} {[%emt 00:00:24]} 18. g4
{[%emt 00:24:01]} h6 {[%clk 01:03:39]} {[%emt 00:00:03]} 19. h4 {[%clk
00:48:44]} {[%emt 00:10:39]} Ne8 {[%clk 01:02:01]} {[%emt 00:02:07]} 20. g5
{[%clk 00:45:46]} {[%emt 00:03:28]} Ra3 {[%clk 01:01:20]} {[%emt 00:01:11]} 21.
Nc5 {[%clk 00:43:18]} {[%emt 00:02:59]} hxg5 {[%clk 00:58:48]} {[%emt
00:03:02]} 22. hxg5 {[%clk 00:42:11]} {[%emt 00:01:36]} g6 {[%clk 00:58:36]}
{[%emt 00:00:43]} 23. Nxe6 {[%clk 00:34:23]} {[%emt 00:08:18]} fxe6 {[%clk
00:46:39]} {[%emt 00:12:27]} 24. Rxe6 {[%clk 00:33:24]} {[%emt 00:01:28]} Nxd4
{[%clk 00:46:47]} {[%emt 00:00:23]} 25. Rxb6 {[%clk 00:31:18]} {[%emt
00:02:36]} Nxf3+ {[%emt 00:00:34]} 26. Kg2 {[%emt 00:02:18]} Nxg5 {[%clk
00:44:29]} {[%emt 00:01:10]} 27. Bxg5 {[%clk 00:30:17]} {[%emt 00:01:16]} Bxb4
{[%clk 00:44:26]} {[%emt 00:00:34]} 1/2-1/2

[ePGN "0.1;DGT LiveChess/2.2.6"]

[Event "Goteborg Open 2024"]
[Site "Goteborgs Schackcentrum, Vegatan 20, Gothenburg, Sweden"]
[Date "2024.08.04"]
[Round "8.18"]
[White "Garby, Jacob"]
[Black "Saleh, Saqr"]
[Result "0-1"]
[TimeControl "15 minutes + 5 seconds per move from move one (Round 1 - 4) / 90 minutes + 30 seconds per move from move one (Round 5 - 8)"]
[WhiteFideId "1786520"]
[BlackFideId "1785877"]
[WhiteElo "1895"]
[BlackElo "1835"]

1. d4 {[%clk 01:30:59]} {[%emt 00:00:02]} Nf6 {[%clk 01:30:09]} {[%emt
00:00:51]} 2. c4 {[%clk 01:31:12]} {[%emt 00:00:17]} e6 {[%clk 01:30:36]}
{[%emt 00:00:03]} 3. Nc3 {[%clk 01:30:43]} {[%emt 00:00:59]} Bb4 {[%clk
01:31:03]} {[%emt 00:00:03]} 4. Nf3 {[%clk 01:29:49]} {[%emt 00:01:24]} d6
{[%clk 01:30:31]} {[%emt 00:01:02]} 5. Bg5 {[%clk 01:27:47]} {[%emt 00:02:32]}
Bxc3+ {[%clk 01:28:10]} {[%emt 00:02:52]} 6. bxc3 {[%clk 01:28:04]} {[%emt
00:00:09]} Nbd7 {[%clk 01:28:34]} {[%emt 00:00:09]} 7. e3 {[%clk 01:26:04]}
{[%emt 00:02:30]} O-O {[%clk 01:24:55]} {[%emt 00:04:09]} 8. Bd3 {[%clk
01:24:22]} {[%emt 00:02:12]} e5 {[%clk 01:25:14]} {[%emt 00:00:11]} 9. Qc2
{[%clk 01:23:38]} {[%emt 00:01:14]} h6 {[%clk 01:23:27]} {[%emt 00:02:18]} 10.
h4 {[%clk 01:15:28]} {[%emt 00:08:40]} Re8 {[%clk 01:17:02]} {[%emt 00:06:54]}
11. Bxf6 {[%clk 01:14:15]} {[%emt 00:01:42]} Nxf6 {[%clk 01:15:27]} {[%emt
00:02:06]} 12. Nd2 {[%clk 01:10:03]} {[%emt 00:04:42]} b6 {[%clk 01:10:26]}
{[%emt 00:05:32]} 13. Ne4 {[%clk 01:07:17]} {[%emt 00:03:15]} Bb7 {[%clk
01:04:26]} {[%emt 00:06:31]} 14. Nxf6+ {[%clk 01:04:05]} {[%emt 00:03:41]} Qxf6
{[%clk 01:04:54]} {[%emt 00:00:02]} 15. f3 {[%clk 01:03:48]} {[%emt 00:00:47]}
exd4 {[%clk 01:04:57]} {[%emt 00:00:26]} 16. cxd4 {[%clk 01:01:56]} {[%emt
00:02:22]} Rxe3+ {[%clk 01:04:05]} {[%emt 00:01:23]} 17. Kf1 {[%clk 01:00:34]}
{[%emt 00:01:51]} Rxf3+ {[%clk 01:00:46]} {[%emt 00:03:50]} 18. gxf3 {[%clk
01:00:31]} {[%emt 00:00:34]} Qxf3+ {[%clk 01:01:14]} {[%emt 00:00:01]} 19. Ke1
{[%clk 00:58:22]} {[%emt 00:02:39]} Qxh1+ {[%clk 00:59:55]} {[%emt 00:01:49]}
20. Bf1 {[%clk 00:58:46]} {[%emt 00:00:06]} Qxh4+ {[%clk 00:58:26]} {[%emt
00:01:59]} 0-1

[ePGN "0.1;DGT LiveChess/2.2.6"]

[Event "Goteborg Open 2024"]
[Site "Goteborgs Schackcentrum, Vegatan 20, Gothenburg, Sweden"]
[Date "2024.08.04"]
[Round "8.19"]
[White "Olsson, Jonas"]
[Black "Murugaraja, Yogeshwer"]
[Result "1-0"]
[TimeControl "15 minutes + 5 seconds per move from move one (Round 1 - 4) / 90 minutes + 30 seconds per move from move one (Round 5 - 8)"]
[WhiteFideId "1734415"]
[BlackFideId "1779389"]
[WhiteElo "1741"]
[BlackElo "1628"]

1. e4 {[%clk 01:30:56]} {[%emt 00:00:03]} c5 {[%clk 01:30:57]} {[%emt
00:00:03]} 2. f4 {[%clk 01:31:01]} {[%emt 00:00:25]} d6 {[%clk 01:31:18]}
{[%emt 00:00:09]} 3. Nf3 {[%clk 01:30:53]} {[%emt 00:00:38]} Nf6 {[%clk
01:31:22]} {[%emt 00:00:26]} 4. Bb5+ {[%clk 01:30:21]} {[%emt 00:01:03]} Bd7
{[%clk 01:31:34]} {[%emt 00:00:18]} 5. Bxd7+ {[%clk 01:30:08]} {[%emt
00:00:43]} Qxd7 {[%clk 01:31:53]} {[%emt 00:00:10]} 6. Nc3 {[%clk 01:29:06]}
{[%emt 00:01:32]} e6 {[%clk 01:31:31]} {[%emt 00:00:53]} 7. O-O {[%clk
01:29:12]} {[%emt 00:00:22]} Be7 {[%clk 01:30:05]} {[%emt 00:01:57]} 8. d4
{[%clk 01:26:58]} {[%emt 00:02:44]} cxd4 {[%clk 01:30:15]} {[%emt 00:00:20]} 9.
Nxd4 {[%clk 01:26:30]} {[%emt 00:00:57]} O-O {[%clk 01:30:09]} {[%emt
00:00:37]} 10. e5 {[%clk 01:25:43]} {[%emt 00:01:17]} dxe5 {[%clk 01:28:59]}
{[%emt 00:01:40]} 11. fxe5 {[%clk 01:26:01]} {[%emt 00:00:11]} Nd5 {[%clk
01:29:16]} {[%emt 00:00:14]} 12. Nxd5 {[%clk 01:24:53]} {[%emt 00:01:38]} Qxd5
{[%clk 01:28:29]} {[%emt 00:01:17]} 13. Nf3 {[%clk 01:22:35]} {[%emt 00:02:47]}
Qc5+ {[%clk 01:27:35]} {[%emt 00:01:25]} 14. Kh1 {[%clk 01:22:19]} {[%emt
00:00:45]} Rd8 {[%clk 01:27:28]} {[%emt 00:00:38]} 15. Qe2 {[%clk 01:22:15]}
{[%emt 00:00:34]} Nc6 {[%clk 01:26:47]} {[%emt 00:01:11]} 16. Be3 {[%clk
01:21:34]} {[%emt 00:01:11]} Qa5 {[%clk 01:25:20]} {[%emt 00:01:54]} 17. Bf4
{[%clk 01:20:13]} {[%emt 00:01:54]} h6 {[%clk 01:22:43]} {[%emt 00:03:08]} 18.
c3 {[%clk 01:17:36]} {[%emt 00:03:06]} g5 {[%clk 01:21:46]} {[%emt 00:01:28]}
19. b4 {[%clk 01:14:35]} {[%emt 00:03:30]} Qc7 {[%clk 01:21:52]} {[%emt
00:00:23]} 20. Bg3 {[%clk 01:13:26]} {[%emt 00:01:40]} Bf8 {[%clk 01:21:06]}
{[%emt 00:01:16]} 21. Rae1 {[%clk 01:11:36]} {[%emt 00:02:19]} Bg7 {[%clk
01:20:30]} {[%emt 00:01:07]} 22. h4 {[%clk 01:10:10]} {[%emt 00:01:55]} g4
{[%clk 01:20:27]} {[%emt 00:00:33]} 23. Nd2 {[%clk 01:06:10]} {[%emt 00:04:30]}
h5 {[%clk 01:20:34]} {[%emt 00:00:24]} 24. Nc4 {[%clk 01:04:48]} {[%emt
00:01:51]} Rac8 {[%clk 01:18:06]} {[%emt 00:02:58]} 25. Qe3 {[%clk 01:02:53]}
{[%emt 00:02:25]} Rd7 {[%clk 01:14:20]} {[%emt 00:04:18]} 26. Qg5 {[%clk
01:01:46]} {[%emt 00:01:36]} f5 {[%clk 01:08:32]} {[%emt 00:06:19]} 27. Nd6
{[%clk 00:52:52]} {[%emt 00:09:23]} Rcd8 {[%clk 01:06:39]} {[%emt 00:02:22]} 28.
Qxh5 {[%clk 00:50:15]} {[%emt 00:03:07]} Bxe5 {[%clk 01:04:33]} {[%emt
00:02:37]} 29. Qg6+ {[%clk 00:49:03]} {[%emt 00:01:41]} Rg7 {[%clk 01:03:49]}
{[%emt 00:01:15]} 30. Qxe6+ {[%clk 00:48:55]} {[%emt 00:00:37]} Kh8 {[%clk
01:04:03]} {[%emt 00:00:16]} 31. Bxe5 {[%clk 00:47:05]} {[%emt 00:02:21]} Nxe5
{[%clk 01:03:40]} {[%emt 00:00:53]} 32. Nxf5 {[%clk 00:46:07]} {[%emt
00:01:28]} Nd3 {[%clk 01:02:34]} {[%emt 00:01:35]} 33. Nxg7 {[%clk 00:39:08]}
{[%emt 00:07:30]} Qxg7 {[%clk 01:02:15]} {[%emt 00:00:49]} 34. Re4 {[%clk
00:37:06]} {[%emt 00:02:31]} g3 {[%clk 01:01:40]} {[%emt 00:01:05]} 35. Kg1
{[%clk 00:36:16]} {[%emt 00:01:20]} Nf2 {[%clk 01:00:49]} {[%emt 00:01:23]} 36.
Re5 {[%clk 00:34:29]} {[%emt 00:02:17]} Nh3+ {[%clk 00:59:52]} {[%emt
00:01:27]} 37. gxh3 {[%clk 00:33:52]} {[%emt 00:01:06]} g2 {[%clk 01:00:10]}
{[%emt 00:00:12]} 38. Rh5+ {[%clk 00:33:55]} {[%emt 00:00:25]} Qh7 {[%clk
01:00:28]} {[%emt 00:00:15]} 39. Rxh7+ {[%clk 00:33:36]} {[%emt 00:00:48]} 1-0

[ePGN "0.1;DGT LiveChess/2.2.6"]

[Event "Goteborg Open 2024"]
[Site "Goteborgs Schackcentrum, Vegatan 20, Gothenburg, Sweden"]
[Date "2024.08.04"]
[Round "8.21"]
[White "Eklund, Rickard"]
[Black "Hitcher, Oscar"]
[Result "1-0"]
[TimeControl "15 minutes + 5 seconds per move from move one (Round 1 - 4) / 90 minutes + 30 seconds per move from move one (Round 5 - 8)"]
[WhiteFideId "1789040"]
[BlackFideId "1746901"]
[WhiteElo "1595"]
[BlackElo "1679"]

1. e4 {[%clk 01:30:53]} {[%emt 00:00:07]} g6 {[%clk 01:30:35]} {[%emt
00:00:26]} 2. d4 {[%clk 01:30:26]} {[%emt 00:00:57]} d6 {[%clk 01:30:51]}
{[%emt 00:00:13]} 3. Nf3 {[%clk 01:29:45]} {[%emt 00:01:10]} Nf6 {[%clk
01:30:39]} {[%emt 00:00:44]} 4. Nc3 {[%clk 01:27:51]} {[%emt 00:02:24]} Bg7
{[%clk 01:30:36]} {[%emt 00:00:33]} 5. Bd3 {[%clk 01:26:50]} {[%emt 00:01:30]}
O-O {[%clk 01:28:29]} {[%emt 00:02:37]} 6. O-O {[%clk 01:25:21]} {[%emt
00:01:54]} h6 {[%clk 01:27:38]} {[%emt 00:01:26]} 7. h3 {[%clk 01:21:38]}
{[%emt 00:04:14]} a6 {[%clk 01:26:57]} {[%emt 00:01:11]} 8. Be3 {[%clk
01:21:11]} {[%emt 00:00:56]} b5 {[%clk 01:26:50]} {[%emt 00:00:38]} 9. a3
{[%clk 01:21:25]} {[%emt 00:00:15]} Bb7 {[%clk 01:26:51]} {[%emt 00:00:30]} 10.
Qd2 {[%clk 01:20:58]} {[%emt 00:00:56]} Kh7 {[%clk 01:27:09]} {[%emt 00:00:12]}
11. b4 {[%clk 01:14:34]} {[%emt 00:06:55]} Nbd7 {[%clk 01:26:56]} {[%emt
00:00:43]} 12. Rae1 {[%clk 01:12:48]} {[%emt 00:02:15]} e5 {[%clk 01:26:41]}
{[%emt 00:00:45]} 13. dxe5 {[%clk 01:09:44]} {[%emt 00:03:35]} Nxe5 14. Nxe5
{[%clk 01:09:18]} dxe5 {[%clk 01:26:52]} {[%emt 00:00:15]} 15. Bc5 {[%clk
01:08:03]} {[%emt 00:01:45]} Re8 {[%clk 01:26:28]} {[%emt 00:00:53]} 16. f3
{[%clk 01:02:09]} {[%emt 00:06:23]} Nh5 {[%clk 01:25:14]} {[%emt 00:01:44]} 17.
Ne2 {[%clk 00:59:39]} {[%emt 00:03:02]} Bc8 {[%clk 01:23:13]} {[%emt 00:02:30]}
18. g4 {[%clk 00:55:19]} {[%emt 00:04:50]} Nf6 {[%clk 01:20:42]} {[%emt
00:03:01]} 19. Rd1 {[%clk 00:54:00]} {[%emt 00:01:50]} Be6 {[%clk 01:20:20]}
{[%emt 00:00:52]} 20. Qe1 {[%clk 00:53:12]} {[%emt 00:01:17]} Qc8 {[%clk
01:19:35]} {[%emt 00:01:15]} 21. Qg3 {[%clk 00:48:26]} {[%emt 00:05:16]} Nd7
{[%clk 01:19:03]} {[%emt 00:01:03]} 22. Be3 {[%clk 00:46:38]} {[%emt 00:02:18]}
c5 {[%clk 01:17:41]} {[%emt 00:01:52]} 23. bxc5 {[%clk 00:45:28]} {[%emt
00:01:39]} Nxc5 {[%clk 01:17:43]} {[%emt 00:00:28]} 24. f4 {[%clk 00:45:15]}
{[%emt 00:00:43]} exf4 {[%clk 01:16:40]} {[%emt 00:01:33]} 25. Bxf4 {[%clk
00:45:00]} {[%emt 00:00:45]} Nxd3 {[%clk 01:15:37]} {[%emt 00:01:35]} 26. cxd3
{[%clk 00:44:56]} {[%emt 00:00:33]} g5 {[%clk 01:14:11]} {[%emt 00:01:55]} 27.
Be3 {[%clk 00:43:04]} {[%emt 00:02:17]} Qc2 {[%clk 01:11:04]} {[%emt 00:03:40]}
28. Qf3 {[%clk 00:42:52]} {[%emt 00:00:43]} Qb2 {[%clk 01:08:10]} {[%emt
00:03:25]} 29. Ng3 {[%clk 00:40:45]} {[%emt 00:02:38]} Bd4 {[%clk 01:06:57]}
{[%emt 00:01:42]} 30. Nh5 {[%clk 00:40:01]} {[%emt 00:01:14]} Bxe3+ {[%clk
01:06:47]} {[%emt 00:00:40]} 31. Qxe3 {[%clk 00:40:11]} {[%emt 00:00:21]} Kh8
{[%clk 01:04:45]} {[%emt 00:02:29]} 32. Rf6 {[%clk 00:39:46]} {[%emt 00:00:57]}
Kh7 {[%clk 01:01:57]} {[%emt 00:03:18]} 33. d4 {[%clk 00:38:07]} {[%emt
00:02:09]} Rad8 {[%clk 01:01:29]} {[%emt 00:00:59]} 34. Rf2 {[%clk 00:37:32]}
{[%emt 00:01:04]} Qb3 {[%clk 00:59:31]} {[%emt 00:02:28]} 35. Rd3 {[%clk
00:33:49]} {[%emt 00:04:14]} Qc4 {[%clk 00:57:00]} {[%emt 00:03:00]} 36. Nf6+
{[%clk 00:33:04]} {[%emt 00:01:16]} Kg6 {[%clk 00:56:23]} {[%emt 00:01:05]} 37.
Nxe8 {[%clk 00:29:19]} {[%emt 00:04:16]} Rxe8 {[%clk 00:56:24]} {[%emt
00:00:29]} 38. d5 {[%clk 00:29:17]} {[%emt 00:00:32]} Bxd5 {[%clk 00:54:19]}
{[%emt 00:02:35]} 39. Qf3 {[%clk 00:27:57]} {[%emt 00:01:51]} Qxe4 {[%emt
00:05:35]} 40. Rxd5 {[%clk 00:27:50]} {[%emt 00:00:05]} Qe6 {[%clk 00:48:10]}
{[%emt 00:02:05]} 41. Qd3+ {[%clk 00:26:34]} {[%emt 00:01:46]} Kg7 {[%clk
00:48:13]} {[%emt 00:00:27]} 42. Qc3+ {[%clk 00:25:31]} {[%emt 00:01:33]} Kg8
{[%clk 00:48:11]} {[%emt 00:00:31]} 43. Rdf5 {[%clk 00:25:27]} {[%emt
00:00:35]} Rc8 {[%clk 00:47:51]} {[%emt 00:00:50]} 44. Qd2 {[%clk 00:24:22]}
{[%emt 00:01:35]} Rf8 {[%clk 00:47:06]} {[%emt 00:01:15]} 45. Rf6 {[%clk
00:24:31]} {[%emt 00:00:22]} Qc8 {[%clk 00:47:10]} {[%emt 00:00:25]} 46. Rxh6
{[%clk 00:24:28]} {[%emt 00:00:33]} f6 {[%clk 00:47:15]} {[%emt 00:00:25]} 47.
Rhxf6 {[%clk 00:21:27]} {[%emt 00:03:31]} Rxf6 {[%clk 00:46:57]} {[%emt
00:00:49]} 48. Rxf6 {[%clk 00:21:42]} {[%emt 00:00:13]} Qc5+ {[%emt 00:00:12]}
49. Rf2 {[%clk 00:21:14]} {[%emt 00:00:54]} Qxa3 {[%clk 00:46:20]} {[%emt
00:01:30]} 50. Qa2+ {[%clk 00:20:51]} {[%emt 00:00:53]} Qxa2 {[%clk 00:46:32]}
{[%emt 00:00:18]} 51. Rxa2 {[%clk 00:21:08]} {[%emt 00:00:14]} 1-0